[Event "HUN-ch U8-U18 2019"]
[Site "Balatonlelle"]
[Date "2019.06.24"]
[Round "5.20"]
[White "Pesti, Mate"]
[Black "Vodila, Martin Botond"]
[Result "0-1"]
[ECO "C02"]
[WhiteElo "1925"]
[BlackElo "2243"]
[Annotator "NA"]
[PlyCount "160"]
[EventDate "2019.06.21"]
[EventType "swiss"]
[EventCountry "HUN"]
[SourceTitle "playchess.com"]
[Source "ChessBase"]
[SourceQuality "1"]
[TimeControl "40/5400+30:1800+30"]

1. e4 {[%emt 0:00:03]} e6 {[%emt 0:00:10]} 2. d4 {[%emt 0:00:04]} d5 {[%emt 0:00:06]} 3. e5 {[%emt 0:00:03]} c5 {[%emt 0:00:06]} 4. c3 {[%emt 0:00:04]} Nc6 {[%emt 0:00:05]} 5. Nf3 {[%emt 0:00:04]} Qb6 {[%emt 0:00:08]} 6. Bd3 {[%emt 0:00:06]} Bd7 {[%emt 0:00:06]} 7. dxc5 {[%emt 0:00:07]} Bxc5 {[%emt 0:00:43]} 8. Qe2 {[%emt 0:00:06]} a5 {[%emt 0:01:25]} 9. a4 {[%emt 0:00:21]} Nge7 {[%emt 0:01:20]} 10. Bf4 {[%emt 0:00:28]} d4 {[%emt 0:07:53]} 11. O-O {[%emt 0:03:36]} Nd5 {[%emt 0:00:27]} 12. Bg3 {[%emt 0:00:27]} Rc8 {[%emt 0:08:03]} 13. Qd2 {[%emt 0:07:48]} h6 {[%emt 0:05:41]} 14. Na3 {[%emt 0:01:30]} dxc3 {[%emt 0:03:56]} 15. bxc3 {[%emt 0:09:29]} Bxa3 {[%emt 0:02:22]} 16. Rxa3 {[%emt 0:00:13]} Qc5 {[%emt 0:00:28]} 17. Qb2 {[%emt 0:07:53]} Nd8 {[%emt 0:04:36]} 18. Rc1 {[%emt 0:02:04]} Nb6 {[%emt 0:20:29]} 19. Qb3 {[%emt 0:08:01]} Bc6 {[%emt 0:08:47]} 20. Nd2 {[%emt 0:09:34]} O-O {[%emt 0:04:40]} 21. Raa1 {[%emt 0:05:49]} Rc7 {[%emt 0:07:43]} 22. Rcb1 {[%emt 0:11:45]} Nd7 {[%emt 0:02:25]} 23. Re1 {[%emt 0:07:33]} Qd5 {[%emt 0:02:45]} 24. Qxd5 {[%emt 0:00:46]} Bxd5 {[%emt 0:00:07]} 25. c4 {[%emt 0:01:42]} Bc6 {[%emt 0:00:18]} 26. Nb3 {[%emt 0:01:38]} b6 {[%emt 0:00:15]} 27. Bf1 {[%emt 0:04:59]} Nb7 {[%emt 0:00:31]} 28. Nd4 {[%emt 0:00:40]} Ndc5 {[%emt 0:01:56]} 29. Nxc6 {[%emt 0:00:44]} Rxc6 {[%emt 0:00:05]} 30. Bf4 {[%emt 0:04:15]} Rd8 {[%emt 0:01:36]} 31. Ra3 {[%emt 0:00:14]} Na6 {[%emt 0:01:28]} 32. g3 {[%emt 0:04:23]} Nbc5 {[%emt 0:00:14]} 33. Bg2 {[%emt 0:03:06]} Rc7 {[%emt 0:00:13]} 34. Be3 {[%emt 0:02:27]} Nb4 {[%emt 0:02:41]} 35. Re2 {[%emt 0:03:09]} Rd1+ {[%emt 0:04:41]} 36. Bf1 {[%emt 0:00:09]} Rcd7 {[%emt 0:01:45]} 37. Kg2 {[%emt 0:00:46]} R7d3 {[%emt 0:04:02]} 38. Rea2 {[%emt 0:01:50]} Nxa2 {[%emt 0:02:47]} 39. Bxd3 {[%emt 0:00:25]} Rxd3 {[%emt 0:01:14]} 40. Bxc5 {[%emt 0:00:00]} Rxa3 {[%emt 0:00:00]} 41. Bxa3 {[%emt 0:01:36]} Nc3 {[%emt 0:03:21]} 42. c5 {[%emt 0:03:32]} bxc5 {[%emt 0:00:08]} 43. Bxc5 {[%emt 0:00:03]} Nxa4 {[%emt 0:00:12]} 44. Bd4 {[%emt 0:00:39]} Kf8 {[%emt 0:00:08]} 45. Kf3 {[%emt 0:01:30]} Ke8 {[%emt 0:01:03]} 46. Ke3 {[%emt 0:03:55]} Kd7 {[%emt 0:00:22]} 47. g4 {[%emt 0:01:41]} Kc6 {[%emt 0:00:19]} 48. f4 {[%emt 0:00:43]} Kd5 {[%emt 0:00:56]} 49. h4 {[%emt 0:00:27]} Nc5 {[%emt 0:01:07]} 50. h5 {[%emt 0:01:16]} a4 {[%emt 0:00:55]} 51. Bb2 {[%emt 0:00:45]} Nd7 {[%emt 0:01:37]} 52. Kd3 {[%emt 0:01:19]} Nb6 {[%emt 0:01:29]} 53. Bc1 {[%emt 0:01:00]} Nd7 {[%emt 0:06:25]} 54. Bb2 {[%emt 0:05:40]} Nc5+ {[%emt 0:00:28]} 55. Ke3 {[%emt 0:01:39]} Kc4 {[%emt 0:00:18]} 56. f5 {[%emt 0:01:21]} Kb3 {[%emt 0:03:53]} 57. Bd4 {[%emt 0:01:05]} Nd7 {[%emt 0:00:10]} 58. Kf4 {[%emt 0:01:36]} a3 {[%emt 0:02:49]} 59. g5 {[%emt 0:01:23]} hxg5+ {[%emt 0:01:06]} 60. Kxg5 {[%emt 0:01:13]} Nf8 {[%emt 0:08:00]} 61. f6 {[%emt 0:07:44]} Nh7+ {[%emt 0:00:16]} 62. Kf4 {[%emt 0:00:05]} gxf6 {[%emt 0:00:05]} 63. exf6 {[%emt 0:00:04]} a2 {[%emt 0:04:45]} 64. h6 {[%emt 0:00:44]} Kc2 {[%emt 0:01:15]} 65. Ke5 {[%emt 0:00:33]} Kb1 {[%emt 0:00:25]} 66. Kd6 {[%emt 0:00:23]} a1=Q 67. Bxa1 {[%emt 0:00:05]} Kxa1 {[%emt 0:00:25]} 68. Ke7 {[%emt 0:00:16]} Ng5 {[%emt 0:00:04]} 69. Kf8 {[%emt 0:01:01]} e5 {[%emt 0:00:18]} 70. Kg7 {[%emt 0:00:08]} e4 {[%emt 0:00:10]} 71. h7 {[%emt 0:00:02]} Nxh7 {[%emt 0:00:07]} 72. Kxh7 {[%emt 0:00:03]} e3 {[%emt 0:00:06]} 73. Kg7 {[%emt 0:00:03]} e2 {[%emt 0:00:07]} 74. Kxf7 {[%emt 0:00:02]} e1=Q {[%emt 0:00:08]} 75. Kf8 Qb4+ {[%emt 0:01:55]} 76. Kg8 {[%emt 0:03:32]} Qg4+ {[%emt 0:00:41]} 77. Kf8 {[%emt 0:00:44]} Qc8+ {[%emt 0:00:44]} 78. Kg7 {[%emt 0:00:09]} Qc3 {[%emt 0:00:06]} 79. Kf7 {[%emt 0:00:42]} Kb2 {[%emt 0:00:10]} 80. Ke7 {[%emt 0:02:06]} Qe5+ {[%emt 0:00:08]} 0-1

[Event "HUN-ch U8-U18 2019"]
[Site "Balatonlelle"]
[Date "2019.06.24"]
[Round "5.20"]
[White "Magold, Filip"]
[Black "Szikszai, Bertalan"]
[Result "1-0"]
[ECO "B40"]
[WhiteElo "1906"]
[BlackElo "1896"]
[Annotator "NA"]
[PlyCount "74"]
[EventDate "2019.06.21"]
[EventType "swiss"]
[EventCountry "HUN"]
[SourceTitle "playchess.com"]
[Source "ChessBase"]
[SourceQuality "1"]
[TimeControl "40/5400+30:1800+30"]

1. e4 {[%emt 0:00:49]} c5 {[%emt 0:00:06]} 2. Nf3 {[%emt 0:00:06]} e6 {[%emt 0:00:05]} 3. d4 {[%emt 0:00:03]} cxd4 {[%emt 0:00:04]} 4. Nxd4 {[%emt 0:00:06]} Bc5 {[%emt 0:00:05]} 5. Nb3 {[%emt 0:01:10]} Bb6 {[%emt 0:00:09]} 6. Nc3 {[%emt 0:00:11]} Ne7 {[%emt 0:01:14]} 7. Bc4 {[%emt 0:02:50]} Nbc6 {[%emt 0:01:38]} 8. O-O {[%emt 0:00:37]} O-O {[%emt 0:00:48]} 9. Bg5 {[%emt 0:01:00]} f5 {[%emt 0:02:27]} 10. exf5 {[%emt 0:05:50]} Rxf5 {[%emt 0:00:43]} 11. Qg4 {[%emt 0:04:11]} Rf7 {[%emt 0:08:58]} 12. Bd3 {[%emt 0:08:28]} Qf8 {[%emt 0:05:54]} 13. Be3 {[%emt 0:03:53]} d5 {[%emt 0:04:57]} 14. Qh4 {[%emt 0:11:55]} Nf5 {[%emt 0:03:50]} 15. Bxf5 {[%emt 0:00:47]} Rxf5 {[%emt 0:00:21]} 16. Rad1 {[%emt 0:01:22]} d4 {[%emt 0:08:18]} 17. Nxd4 {[%emt 0:00:09]} Nxd4 {[%emt 0:00:09]} 18. Rxd4 {[%emt 0:00:08]} Bxd4 {[%emt 0:00:17]} 19. Qxd4 {[%emt 0:00:04]} b6 {[%emt 0:15:09]} 20. Rd1 {[%emt 0:10:57]} Bb7 {[%emt 0:03:00]} 21. Qc4 {[%emt 0:04:37]} Qf7 {[%emt 0:03:13]} 22. Rd6 {[%emt 0:04:48]} Bd5 {[%emt 0:02:22]} 23. Qd3 {[%emt 0:05:47]} Rf8 {[%emt 0:03:13]} 24. Qd2 {[%emt 0:03:27]} Kh8 {[%emt 0:07:19]} 25. Nxd5 {[%emt 0:16:26]} Rxd5 {[%emt 0:01:18]} 26. Rxd5 {[%emt 0:00:06]} exd5 {[%emt 0:00:12]} 27. f3 {[%emt 0:01:03]} Re8 {[%emt 0:01:37]} 28. Kf2 {[%emt 0:02:44]} Qh5 {[%emt 0:01:59]} 29. Bf4 {[%emt 0:07:04]} Qh4+ {[%emt 0:02:25]} 30. Kf1 {[%emt 0:03:07]} Qe7 {[%emt 0:00:27]} 31. Kf2 {[%emt 0:00:32]} Qc5+ {[%emt 0:01:41]} 32. Be3 {[%emt 0:00:11]} Qc4 {[%emt 0:00:24]} 33. Bd4 {[%emt 0:01:04]} Rc8 {[%emt 0:04:11]} 34. c3 Qxa2 35. Qg5 Qxb2+ 36. Kg3 Rg8 37. Kh3 Qb4 1-0

[Event "HUN-ch U8-U18 2019"]
[Site "Balatonlelle"]
[Date "2019.06.24"]
[Round "5.21"]
[White "Hatala, Csaba Laszlo"]
[Black "Varga, Marcell"]
[Result "1-0"]
[ECO "C54"]
[WhiteElo "1958"]
[BlackElo "2106"]
[Annotator "NA"]
[PlyCount "91"]
[EventDate "2019.06.21"]
[EventType "swiss"]
[EventCountry "HUN"]
[SourceTitle "playchess.com"]
[Source "ChessBase"]
[SourceQuality "1"]
[TimeControl "40/5400+30:1800+30"]

1. e4 {[%emt 0:00:03]} e5 {[%emt 0:00:35]} 2. Nf3 {[%emt 0:00:06]} Nc6 {[%emt 0:00:27]} 3. Bc4 {[%emt 0:00:13]} Bc5 {[%emt 0:00:25]} 4. c3 {[%emt 0:00:13]} Nf6 {[%emt 0:00:12]} 5. d3 {[%emt 0:00:09]} d6 {[%emt 0:01:14]} 6. b4 {[%emt 0:00:36]} Bb6 {[%emt 0:00:14]} 7. a4 {[%emt 0:00:43]} a5 {[%emt 0:07:09]} 8. b5 {[%emt 0:01:04]} Ne7 {[%emt 0:00:50]} 9. Qb3 {[%emt 0:10:19]} O-O {[%emt 0:09:09]} 10. O-O {[%emt 0:01:39]} Ng6 {[%emt 0:04:58]} 11. Be3 {[%emt 0:13:15]} Ba7 {[%emt 0:14:54]} 12. Nbd2 {[%emt 0:14:33]} Qe7 {[%emt 0:08:45]} 13. Rae1 {[%emt 0:18:19]} Nd7 {[%emt 0:09:50]} 14. Qa2 {[%emt 0:09:36]} h6 {[%emt 0:10:41]} 15. Bb3 {[%emt 0:04:46]} Nc5 {[%emt 0:06:20]} 16. Bxc5 {[%emt 0:00:55]} Bxc5 {[%emt 0:00:41]} 17. d4 {[%emt 0:00:51]} Bb6 {[%emt 0:03:20]} 18. Nc4 {[%emt 0:02:06]} Bg4 {[%emt 0:01:23]} 19. Re3 {[%emt 0:01:49]} Bxf3 {[%emt 0:01:48]} 20. Rxf3 {[%emt 0:00:27]} exd4 {[%emt 0:00:40]} 21. Nxb6 {[%emt 0:00:21]} cxb6 {[%emt 0:00:30]} 22. cxd4 {[%emt 0:00:11]} Qxe4 {[%emt 0:01:51]} 23. Bxf7+ {[%emt 0:01:46]} Kh7 {[%emt 0:00:12]} 24. Bxg6+ {[%emt 0:05:56]} Qxg6 {[%emt 0:00:32]} 25. Qd5 {[%emt 0:01:29]} Rxf3 {[%emt 0:03:27]} 26. Qxf3 {[%emt 0:00:09]} Rb8 {[%emt 0:00:10]} 27. g3 {[%emt 0:01:06]} Qe6 {[%emt 0:02:45]} 28. Rc1 {[%emt 0:04:19]} Rc8 {[%emt 0:03:36]} 29. Qd3+ {[%emt 0:02:14]} Kh8 {[%emt 0:01:20]} 30. Rxc8+ {[%emt 0:02:50]} Qxc8 {[%emt 0:00:02]} 31. Qf3 {[%emt 0:00:50]} Qd7 {[%emt 0:03:38]} 32. Kg2 {[%emt 0:00:31]} d5 {[%emt 0:00:28]} 33. h4 {[%emt 0:00:26]} Qe6 {[%emt 0:01:17]} 34. g4 {[%emt 0:00:56]} Qd6 {[%emt 0:01:14]} 35. g5 {[%emt 0:00:45]} hxg5 {[%emt 0:01:41]} 36. hxg5 {[%emt 0:00:09]} Kg8 {[%emt 0:00:44]} 37. Qf5 {[%emt 0:00:33]} Qd8 {[%emt 0:00:55]} 38. g6 {[%emt 0:00:33]} Kh8 {[%emt 0:00:32]} 39. Qh5+ {[%emt 0:00:54]} Kg8 {[%emt 0:00:02]} 40. Qh7+ {[%emt 0:00:00]} Kf8 {[%emt 0:00:00]} 41. Qh8+ {[%emt 0:00:20]} Ke7 {[%emt 0:00:11]} 42. Qxg7+ {[%emt 0:00:16]} Kd6 {[%emt 0:00:42]} 43. Qe5+ {[%emt 0:00:08]} Kd7 {[%emt 0:00:06]} 44. Qxd5+ {[%emt 0:00:05]} Kc7 {[%emt 0:00:06]} 45. Qxd8+ {[%emt 0:00:07]} Kxd8 {[%emt 0:00:03]} 46. g7 {[%emt 0:00:08]} 1-0

[Event "HUN-ch U8-U18 2019"]
[Site "Balatonlelle"]
[Date "2019.06.24"]
[Round "5.22"]
[White "Birovecz, Ben Jordan"]
[Black "Barasits, Balint"]
[Result "1/2-1/2"]
[ECO "D35"]
[WhiteElo "1912"]
[BlackElo "2022"]
[Annotator "NA"]
[PlyCount "81"]
[EventDate "2019.06.21"]
[EventType "swiss"]
[EventCountry "HUN"]
[SourceTitle "playchess.com"]
[Source "ChessBase"]
[SourceQuality "1"]
[TimeControl "40/5400+30:1800+30"]

1. d4 {[%emt 0:00:10]} d5 {[%emt 0:00:07]} 2. c4 {[%emt 0:00:14]} e6 {[%emt 0:00:09]} 3. Nc3 {[%emt 0:00:03]} Nf6 {[%emt 0:00:44]} 4. cxd5 {[%emt 0:00:21]} exd5 {[%emt 0:00:10]} 5. Bg5 {[%emt 0:00:06]} c6 {[%emt 0:02:47]} 6. e3 {[%emt 0:00:44]} Bf5 {[%emt 0:00:43]} 7. Qf3 {[%emt 0:00:09]} Bg6 {[%emt 0:06:45]} 8. Bxf6 {[%emt 0:00:09]} Qxf6 {[%emt 0:00:13]} 9. Qxf6 {[%emt 0:00:06]} gxf6 {[%emt 0:00:03]} 10. Nf3 {[%emt 0:01:44]} Bd6 {[%emt 0:00:51]} 11. Nh4 {[%emt 0:00:52]} Nd7 {[%emt 0:00:41]} 12. f4 {[%emt 0:11:55]} f5 {[%emt 0:07:51]} 13. Bd3 {[%emt 0:00:59]} O-O-O {[%emt 0:09:21]} 14. Nxf5 {[%emt 0:07:22]} Bxf5 {[%emt 0:02:46]} 15. Bxf5 {[%emt 0:00:09]} Kc7 {[%emt 0:00:10]} 16. Rc1 {[%emt 0:01:44]} Bb4 {[%emt 0:01:52]} 17. Kf2 {[%emt 0:00:17]} Bxc3 {[%emt 0:00:26]} 18. Rxc3 {[%emt 0:00:15]} Nf6 {[%emt 0:01:16]} 19. Kf3 {[%emt 0:01:14]} h5 {[%emt 0:00:10]} 20. g3 {[%emt 0:00:40]} Rhe8 {[%emt 0:02:40]} 21. Rhc1 {[%emt 0:03:28]} Re7 {[%emt 0:03:09]} 22. b4 {[%emt 0:02:41]} a6 {[%emt 0:08:34]} 23. h3 {[%emt 0:11:06]} Ne4 {[%emt 0:03:06]} 24. R3c2 {[%emt 0:06:34]} Nd6 {[%emt 0:04:58]} 25. Bd3 {[%emt 0:01:43]} f5 {[%emt 0:00:14]} 26. a4 {[%emt 0:07:20]} Rde8 {[%emt 0:01:13]} 27. Re2 {[%emt 0:00:41]} Kb6 {[%emt 0:10:40]} 28. a5+ {[%emt 0:05:23]} Kc7 {[%emt 0:00:35]} 29. Rg1 {[%emt 0:01:20]} Rh8 {[%emt 0:03:19]} 30. g4 {[%emt 0:01:30]} hxg4+ {[%emt 0:00:37]} 31. hxg4 {[%emt 0:00:17]} Rh3+ {[%emt 0:00:50]} 32. Rg3 {[%emt 0:00:25]} fxg4+ {[%emt 0:00:10]} 33. Kxg4 {[%emt 0:00:27]} Rh1 {[%emt 0:00:49]} 34. Kf3 {[%emt 0:03:28]} Rf1+ {[%emt 0:06:50]} 35. Rf2 {[%emt 0:05:48]} Re1 {[%emt 0:00:17]} 36. Re2 {[%emt 0:00:43]} Rf1+ {[%emt 0:08:02]} 37. Kg2 {[%emt 0:01:44]} Rd1 {[%emt 0:00:15]} 38. Bg6 {[%emt 0:02:14]} Rxd4 {[%emt 0:00:30]} 39. f5 {[%emt 0:00:48]} Nxf5 {[%emt 0:05:20]} 40. Bxf5 {[%emt 0:00:00]} Rxb4 {[%emt 0:00:00]} 41. Ra2 {[%emt 0:05:00]} 1/2-1/2

[Event "HUN-ch U8-U18 2019"]
[Site "Balatonlelle"]
[Date "2019.06.24"]
[Round "5.22"]
[White "Herczeg, Marcell"]
[Black "Zsaki, Akos"]
[Result "1-0"]
[ECO "C50"]
[WhiteElo "1783"]
[BlackElo "1432"]
[Annotator "NA"]
[PlyCount "52"]
[EventDate "2019.06.21"]
[EventType "swiss"]
[EventCountry "HUN"]
[SourceTitle "playchess.com"]
[Source "ChessBase"]
[SourceQuality "1"]
[TimeControl "40/5400+30:1800+30"]

1. e4 {[%emt 0:00:22]} e5 {[%emt 0:00:09]} 2. Nf3 {[%emt 0:00:43]} Nc6 {[%emt 0:01:07]} 3. Nc3 {[%emt 0:00:57]} Bc5 {[%emt 0:02:05]} 4. Bc4 {[%emt 0:06:37]} Nf6 {[%emt 0:02:15]} 5. d3 {[%emt 0:01:03]} d6 {[%emt 0:00:36]} 6. Be3 {[%emt 0:02:02]} Bb6 {[%emt 0:01:13]} 7. Qd2 {[%emt 0:00:38]} Bg4 {[%emt 0:01:57]} 8. h3 {[%emt 0:08:44]} Bxf3 {[%emt 0:03:08]} 9. gxf3 {[%emt 0:00:59]} Qd7 {[%emt 0:02:50]} 10. Rg1 {[%emt 0:01:30]} Rg8 {[%emt 0:04:40]} 11. Bb5 {[%emt 0:13:12]} O-O-O {[%emt 0:06:34]} 12. O-O-O {[%emt 0:00:47]} Qxh3 {[%emt 0:04:23]} 13. Bxc6 {[%emt 0:00:26]} bxc6 {[%emt 0:00:18]} 14. Qe2 {[%emt 0:00:32]} Qe6 {[%emt 0:03:07]} 15. d4 {[%emt 0:01:04]} exd4 {[%emt 0:02:29]} 16. Bxd4 {[%emt 0:00:58]} Bxd4 {[%emt 0:02:18]} 17. Rxd4 {[%emt 0:00:51]} c5 {[%emt 0:08:34]} 18. Ra4 {[%emt 0:02:02]} Kd7 {[%emt 0:04:50]} 19. Rxa7 {[%emt 0:01:38]} Rc8 {[%emt 0:03:10]} 20. Rd1 {[%emt 0:02:19]} Qe5 {[%emt 0:00:55]} 21. Qb5+ {[%emt 0:00:44]} Ke7 {[%emt 0:01:13]} 22. Qc6 {[%emt 0:00:29]} Kd8 {[%emt 0:03:55]} 23. Kb1 {[%emt 0:05:21]} h5 {[%emt 0:01:54]} 24. Nb5 {[%emt 0:00:43]} Ne8 {[%emt 0:00:23]} 25. Rd5 {[%emt 0:03:45]} Qe7 {[%emt 0:06:16]} 26. e5 {[%emt 0:03:28]} h4 {[%emt 0:01:24]} 1-0

[Event "HUN-ch U8-U18 2019"]
[Site "Balatonlelle"]
[Date "2019.06.24"]
[Round "5.23"]
[White "Kovacs, Judit"]
[Black "Erseki, Tamara"]
[Result "0-1"]
[ECO "A30"]
[WhiteElo "2025"]
[BlackElo "1999"]
[Annotator "NA"]
[PlyCount "96"]
[EventDate "2019.06.21"]
[EventType "swiss"]
[EventCountry "HUN"]
[SourceTitle "playchess.com"]
[Source "ChessBase"]
[SourceQuality "1"]
[TimeControl "40/5400+30:1800+30"]

1. c4 {[%emt 0:00:03]} c5 {[%emt 0:00:18]} 2. Nf3 {[%emt 0:00:06]} Nc6 {[%emt 0:00:05]} 3. Nc3 {[%emt 0:00:06]} e5 {[%emt 0:00:12]} 4. e3 {[%emt 0:00:36]} f5 {[%emt 0:00:32]} 5. d4 {[%emt 0:01:46]} e4 {[%emt 0:01:21]} 6. d5 {[%emt 0:01:08]} exf3 {[%emt 0:01:22]} 7. dxc6 {[%emt 0:00:07]} dxc6 {[%emt 0:00:07]} 8. Qxd8+ {[%emt 0:01:58]} Kxd8 {[%emt 0:00:04]} 9. gxf3 {[%emt 0:00:06]} Nf6 {[%emt 0:01:12]} 10. b3 {[%emt 0:01:40]} g6 {[%emt 0:00:07]} 11. Ba3 {[%emt 0:03:01]} b6 {[%emt 0:07:17]} 12. f4 {[%emt 0:06:53]} Bg7 {[%emt 0:05:23]} 13. O-O-O+ {[%emt 0:15:15]} Kc7 {[%emt 0:01:45]} 14. h3 {[%emt 0:02:30]} Be6 {[%emt 0:06:03]} 15. Bg2 {[%emt 0:00:36]} Rad8 {[%emt 0:02:32]} 16. Bf3 {[%emt 0:00:34]} a6 {[%emt 0:06:58]} 17. h4 {[%emt 0:08:00]} Bf7 {[%emt 0:14:57]} 18. Kc2 {[%emt 0:03:07]} Rhe8 {[%emt 0:01:05]} 19. Rhg1 {[%emt 0:03:46]} Bh8 {[%emt 0:00:52]} 20. Ne2 {[%emt 0:07:41]} h5 {[%emt 0:07:56]} 21. Bb2 {[%emt 0:07:42]} b5 {[%emt 0:01:36]} 22. Be5+ {[%emt 0:02:34]} Kb6 {[%emt 0:00:23]} 23. cxb5 {[%emt 0:00:07]} axb5 {[%emt 0:01:42]} 24. Kb2 {[%emt 0:08:23]} Ng4 {[%emt 0:05:50]} 25. Bxh8 {[%emt 0:04:56]} Rxh8 {[%emt 0:00:19]} 26. Bxg4 {[%emt 0:01:08]} hxg4 {[%emt 0:06:44]} 27. Rxd8 {[%emt 0:00:42]} Rxd8 {[%emt 0:00:07]} 28. Kc1 {[%emt 0:00:05]} Rh8 {[%emt 0:04:13]} 29. Rh1 {[%emt 0:00:32]} Bd5 {[%emt 0:01:09]} 30. Rh2 {[%emt 0:00:07]} c4 {[%emt 0:01:26]} 31. Kb2 {[%emt 0:08:44]} b4 {[%emt 0:02:12]} 32. bxc4 {[%emt 0:02:05]} Bxc4 {[%emt 0:00:04]} 33. Nc1 {[%emt 0:02:05]} c5 {[%emt 0:01:06]} 34. a3 {[%emt 0:00:51]} Kb5 {[%emt 0:03:25]} 35. axb4 {[%emt 0:01:01]} cxb4 {[%emt 0:00:03]} 36. Nb3 {[%emt 0:00:56]} Bd5 {[%emt 0:05:26]} 37. Nd4+ {[%emt 0:01:09]} Kc4 {[%emt 0:00:03]} 38. Ne2 {[%emt 0:00:33]} Bf7 {[%emt 0:03:50]} 39. Rh1 {[%emt 0:00:29]} Ra8 {[%emt 0:01:31]} 40. Nd4 {[%emt 0:00:00]} Kd3 {[%emt 0:00:00]} 41. Nc6 {[%emt 0:04:17]} Ke2 {[%emt 0:07:44]} 42. Ne5 {[%emt 0:05:56]} Bd5 {[%emt 0:04:51]} 43. Rh2 {[%emt 0:00:09]} Kf1 {[%emt 0:00:34]} 44. h5 {[%emt 0:01:22]} gxh5 {[%emt 0:03:45]} 45. Rxh5 {[%emt 0:00:30]} Ra2+ {[%emt 0:00:14]} 46. Kc1 {[%emt 0:02:28]} b3 {[%emt 0:00:17]} 47. Nd3 {[%emt 0:00:58]} Be4 {[%emt 0:00:11]} 48. Nb2 {[%emt 0:00:10]} Ke2 {[%emt 0:00:38]} 0-1

[Event "HUN-ch U8-U18 2019"]
[Site "Balatonlelle"]
[Date "2019.06.24"]
[Round "5.23"]
[White "Gulacsi, Donat Ferenc"]
[Black "Gergely, Daniel"]
[Result "1/2-1/2"]
[ECO "B39"]
[WhiteElo "1638"]
[BlackElo "1427"]
[Annotator "NA"]
[PlyCount "69"]
[EventDate "2019.06.21"]
[EventType "swiss"]
[EventCountry "HUN"]
[SourceTitle "playchess.com"]
[Source "ChessBase"]
[SourceQuality "1"]
[TimeControl "40/5400+30:1800+30"]

1. e4 {[%emt 0:08:21]} c5 {[%emt 0:00:08]} 2. Ne2 {[%emt 0:00:34]} Nc6 {[%emt 0:00:45]} 3. c4 {[%emt 0:00:21]} g6 {[%emt 0:00:20]} 4. d4 {[%emt 0:00:10]} cxd4 {[%emt 0:00:07]} 5. Nxd4 {[%emt 0:00:05]} Nf6 {[%emt 0:00:10]} 6. Nc3 {[%emt 0:00:16]} Bg7 {[%emt 0:00:14]} 7. Be3 {[%emt 0:00:28]} Ng4 {[%emt 0:00:31]} 8. Qxg4 {[%emt 0:01:38]} Nxd4 {[%emt 0:00:14]} 9. Qd1 {[%emt 0:00:24]} e5 {[%emt 0:00:19]} 10. Qd2 {[%emt 0:23:12]} O-O {[%emt 0:01:35]} 11. Bxd4 {[%emt 0:07:20]} exd4 {[%emt 0:00:33]} 12. Nb5 {[%emt 0:00:55]} Qb6 {[%emt 0:00:20]} 13. Bd3 {[%emt 0:06:38]} a6 {[%emt 0:02:15]} 14. Na3 {[%emt 0:00:05]} Re8 {[%emt 0:00:25]} 15. O-O {[%emt 0:02:25]} Re5 {[%emt 0:02:35]} 16. Rad1 {[%emt 0:05:01]} d6 {[%emt 0:02:28]} 17. b3 {[%emt 0:02:05]} Ra5 {[%emt 0:01:43]} 18. Nb1 {[%emt 0:05:24]} Bg4 {[%emt 0:01:58]} 19. Be2 {[%emt 0:00:32]} Bxe2 {[%emt 0:00:18]} 20. Qxe2 {[%emt 0:00:06]} Re8 {[%emt 0:00:37]} 21. Qc2 {[%emt 0:07:40]} Qc7 {[%emt 0:05:59]} 22. Nd2 {[%emt 0:04:21]} Ra3 {[%emt 0:04:15]} 23. Nf3 {[%emt 0:01:55]} Qa5 {[%emt 0:01:33]} 24. Rd2 {[%emt 0:03:23]} d3 {[%emt 0:03:02]} 25. Qxd3 {[%emt 0:00:30]} Rd8 {[%emt 0:03:37]} 26. Qc2 {[%emt 0:01:24]} b5 {[%emt 0:01:47]} 27. Nd4 {[%emt 0:08:22]} Bxd4 {[%emt 0:01:07]} 28. Rxd4 {[%emt 0:00:05]} Rxa2 {[%emt 0:00:14]} 29. Qd3 {[%emt 0:00:04]} bxc4 {[%emt 0:00:39]} 30. bxc4 {[%emt 0:00:07]} Qc5 {[%emt 0:00:40]} 31. Rd5 {[%emt 0:01:49]} Ra3 {[%emt 0:01:15]} 32. Qc2 {[%emt 0:04:19]} Qc7 {[%emt 0:01:46]} 33. Rfd1 {[%emt 0:01:54]} Ra5 {[%emt 0:00:50]} 34. Qd3 {[%emt 0:01:27]} Rc5 {[%emt 0:00:48]} 35. Rd4 {[%emt 0:02:01]} 1/2-1/2

[Event "HUN-ch U8-U18 2019"]
[Site "Balatonlelle"]
[Date "2019.06.24"]
[Round "5.24"]
[White "Makay, Mark Janos"]
[Black "Toth, Gergely"]
[Result "1-0"]
[ECO "B42"]
[WhiteElo "1354"]
[BlackElo "1485"]
[Annotator "NA"]
[PlyCount "67"]
[EventDate "2019.06.21"]
[EventType "swiss"]
[EventCountry "HUN"]
[SourceTitle "playchess.com"]
[Source "ChessBase"]
[SourceQuality "1"]
[TimeControl "40/5400+30:1800+30"]

1. e4 {[%emt 0:00:01]} c5 {[%emt 0:00:09]} 2. Nf3 {[%emt 0:00:37]} e6 {[%emt 0:00:12]} 3. d4 {[%emt 0:00:42]} cxd4 {[%emt 0:00:11]} 4. Nxd4 {[%emt 0:01:03]} a6 {[%emt 0:00:11]} 5. Bd3 {[%emt 0:01:10]} Qc7 {[%emt 0:00:12]} 6. c4 {[%emt 0:01:16]} Nf6 {[%emt 0:00:49]} 7. Nc3 {[%emt 0:01:00]} d6 {[%emt 0:00:36]} 8. Be3 {[%emt 0:00:36]} Be7 {[%emt 0:04:20]} 9. O-O {[%emt 0:01:25]} O-O {[%emt 0:01:05]} 10. f3 {[%emt 0:01:09]} Nbd7 {[%emt 0:01:28]} 11. b3 {[%emt 0:00:37]} b6 {[%emt 0:01:49]} 12. Qd2 {[%emt 0:03:16]} Bb7 {[%emt 0:01:25]} 13. Rac1 {[%emt 0:02:20]} Rac8 {[%emt 0:03:30]} 14. Rfd1 {[%emt 0:01:00]} Ne5 {[%emt 0:00:59]} 15. Bf1 {[%emt 0:02:31]} Rfd8 {[%emt 0:07:24]} 16. Qf2 {[%emt 0:05:34]} Ned7 {[%emt 0:03:41]} 17. g4 {[%emt 0:05:33]} Ne8 {[%emt 0:06:42]} 18. h4 {[%emt 0:04:19]} g6 {[%emt 0:00:47]} 19. Bh3 {[%emt 0:02:53]} Ng7 {[%emt 0:02:30]} 20. g5 {[%emt 0:03:23]} Nc5 {[%emt 0:02:44]} 21. b4 {[%emt 0:04:14]} Nd7 {[%emt 0:01:15]} 22. f4 {[%emt 0:03:29]} e5 {[%emt 0:05:30]} 23. Nd5 {[%emt 0:02:41]} Bxd5 {[%emt 0:00:18]} 24. cxd5 {[%emt 0:00:07]} Qb7 {[%emt 0:00:31]} 25. Nc6 {[%emt 0:00:11]} Re8 {[%emt 0:01:10]} 26. f5 {[%emt 0:02:06]} Bf8 {[%emt 0:01:52]} 27. f6 {[%emt 0:01:44]} Nh5 {[%emt 0:00:06]} 28. Qg2 {[%emt 0:01:19]} b5 {[%emt 0:02:15]} 29. Qg4 {[%emt 0:00:18]} Nb8 {[%emt 0:01:20]} 30. Ne7+ {[%emt 0:00:46]} Bxe7 {[%emt 0:02:37]} 31. Rxc8 {[%emt 0:00:03]} Rxc8 {[%emt 0:00:42]} 32. Qxc8+ {[%emt 0:00:12]} Qxc8 {[%emt 0:00:15]} 33. Bxc8 {[%emt 0:00:06]} Ng3 {[%emt 0:00:12]} 34. fxe7 {[%emt 0:00:07]} 1-0